[Event "*** Titled Tuesday Blitz"]
[Site "Chess.com"]
[Date "2018.04.03"]
[Round "5"]
[White "amintabatabaei"]
[Black "TigranLPetrosyan"]
[Result "1-0"]
[WhiteElo "2658"]
[BlackElo "2653"]
[TimeControl "180+2"]
[EndTime "14:09:46 PDT"]
[Termination "amintabatabaei won by resignation"]

1. e4 {[%clk 0:03:01.9]} 1... g6 {[%clk 0:03:00.8]} 2. d4 {[%clk 0:03:00.5]}
2... Bg7 {[%clk 0:03:02.7]} 3. Nf3 {[%clk 0:03:01.5]} 3... a6 {[%clk 0:03:04.2]}
4. Bd3 {[%clk 0:03:00.8]} 4... d6 {[%clk 0:03:05.4]} 5. O-O {[%clk 0:03:01.8]}
5... Nf6 {[%clk 0:03:07.3]} 6. c3 {[%clk 0:03:02.4]} 6... O-O {[%clk 0:03:08.9]}
7. Re1 {[%clk 0:03:02.9]} 7... Nc6 {[%clk 0:03:10.4]} 8. Nbd2 {[%clk 0:03:03.4]}
8... e5 {[%clk 0:03:11.9]} 9. a4 {[%clk 0:02:44.9]} 9... h6 {[%clk 0:03:11.5]}
10. dxe5 {[%clk 0:02:41.8]} 10... dxe5 {[%clk 0:03:10.8]} 11. Nc4 {[%clk
0:02:42.5]} 11... Re8 {[%clk 0:03:06]} 12. h3 {[%clk 0:02:38.8]} 12... Nh5
{[%clk 0:03:05.7]} 13. Bf1 {[%clk 0:02:30.8]} 13... Qe7 {[%clk 0:03:04.3]} 14.
Ne3 {[%clk 0:02:30.4]} 14... Be6 {[%clk 0:03:02.5]} 15. Nd5 {[%clk 0:02:30.9]}
15... Qd7 {[%clk 0:03:01.3]} 16. g4 {[%clk 0:02:24]} 16... Nf4 {[%clk
0:02:32.3]} 17. Nxf4 {[%clk 0:02:16.9]} 17... Qxd1 {[%clk 0:02:31.4]} 18. Rxd1
{[%clk 0:02:18.8]} 18... exf4 {[%clk 0:02:33.1]} 19. Bxf4 {[%clk 0:02:19.9]}
19... Bb3 {[%clk 0:02:28.3]} 20. Re1 {[%clk 0:02:18.9]} 20... Re7 {[%clk
0:02:29.1]} 21. Nd2 {[%clk 0:02:16.1]} 21... Be6 {[%clk 0:02:28.7]} 22. Bc4
{[%clk 0:02:13]} 22... g5 {[%clk 0:02:29.4]} 23. Bxe6 {[%clk 0:01:49]} 23...
fxe6 {[%clk 0:02:23.5]} 24. Bg3 {[%clk 0:01:44.3]} 24... Be5 {[%clk 0:02:17.8]}
25. Kg2 {[%clk 0:01:37.2]} 25... Bxg3 {[%clk 0:02:17.1]} 26. Kxg3 {[%clk
0:01:39.1]} 26... Rd8 {[%clk 0:01:56.6]} 27. Nc4 {[%clk 0:01:28]} 27... Red7
{[%clk 0:01:47.7]} 28. b4 {[%clk 0:01:17.4]} 28... b5 {[%clk 0:01:32.9]} 29.
axb5 {[%clk 0:01:16.3]} 29... axb5 {[%clk 0:01:34.8]} 30. Ne3 {[%clk 0:01:13.4]}
30... Ne5 {[%clk 0:01:33.9]} 31. Red1 {[%clk 0:01:04.6]} 31... Rd3 {[%clk
0:01:20]} 32. Kg2 {[%clk 0:00:46.3]} 32... Kf7 {[%clk 0:01:13.9]} 33. Kf1 {[%clk
0:00:43.1]} 33... R8d6 {[%clk 0:01:10.3]} 34. Rxd3 {[%clk 0:00:40.1]} 34... Rxd3
{[%clk 0:01:12.2]} 35. Rc1 {[%clk 0:00:40.6]} 35... Nc4 {[%clk 0:00:58.6]} 36.
Nxc4 {[%clk 0:00:32.4]} 36... bxc4 {[%clk 0:01:00.5]} 37. Ra1 {[%clk 0:00:27]}
37... Rxh3 {[%clk 0:00:51.9]} 38. Ra7 {[%clk 0:00:26.9]} 38... Rxc3 {[%clk
0:00:52.6]} 39. Rxc7+ {[%clk 0:00:27.8]} 39... Kf6 {[%clk 0:00:54.1]} 40. Rc5
{[%clk 0:00:28.8]} 40... Rc2 {[%clk 0:00:44.3]} 41. Kg2 {[%clk 0:00:24.1]} 41...
c3 {[%clk 0:00:44.9]} 42. Kf3 {[%clk 0:00:24.8]} 42... Rc1 {[%clk 0:00:44.1]}
43. Ke2 {[%clk 0:00:21.7]} 43... Rb1 {[%clk 0:00:29.7]} 44. Rxc3 {[%clk
0:00:20.9]} 44... Rxb4 {[%clk 0:00:29.7]} 45. Ke3 {[%clk 0:00:22.4]} 45... Rb5
{[%clk 0:00:26.8]} 46. Ra3 {[%clk 0:00:20.7]} 46... Ke5 {[%clk 0:00:27.4]} 47.
f3 {[%clk 0:00:20.9]} 47... Rc5 {[%clk 0:00:26.4]} 48. Rb3 {[%clk 0:00:21.6]}
48... Ra5 {[%clk 0:00:26.8]} 49. Rc3 {[%clk 0:00:22.3]} 49... Kd6 {[%clk
0:00:24.6]} 50. Rd3+ {[%clk 0:00:23]} 50... Ke5 {[%clk 0:00:23.8]} 51. Rc3
{[%clk 0:00:24.9]} 51... Ra2 {[%clk 0:00:22.8]} 52. Rc5+ {[%clk 0:00:25]} 52...
Kf6 {[%clk 0:00:17.1]} 53. e5+ {[%clk 0:00:23.6]} 53... Kg6 {[%clk 0:00:14.3]}
54. Rc6 {[%clk 0:00:21.8]} 54... Ra3+ {[%clk 0:00:15.5]} 55. Ke4 {[%clk
0:00:21.2]} 55... Ra4+ {[%clk 0:00:16.5]} 56. Kd3 {[%clk 0:00:22.3]} 56... Ra3+
{[%clk 0:00:17.7]} 57. Kd4 {[%clk 0:00:23.2]} 57... Rxf3 {[%clk 0:00:16.2]} 58.
Rxe6+ {[%clk 0:00:23.5]} 58... Kg7 {[%clk 0:00:17.6]} 59. Re7+ {[%clk 0:00:23]}
59... Kg6 {[%clk 0:00:16]} 60. Re6+ {[%clk 0:00:23.9]} 60... Kg7 {[%clk
0:00:17.1]} 61. Re7+ {[%clk 0:00:22.9]} 61... Kg6 {[%clk 0:00:14.2]} 62. e6
{[%clk 0:00:22]} 62... Rf4+ {[%clk 0:00:14.1]} 63. Ke5 {[%clk 0:00:23.4]} 63...
Rxg4 {[%clk 0:00:15.6]} 64. Re8 {[%clk 0:00:22.1]} 64... Rg1 {[%clk 0:00:13.9]}
65. Rg8+ {[%clk 0:00:22.8]} 65... Kh7 {[%clk 0:00:14.9]} 66. Rf8 {[%clk
0:00:22.1]} 66... Re1+ {[%clk 0:00:13.2]} 67. Kf6 {[%clk 0:00:22.5]} 67... Rf1+
{[%clk 0:00:11.1]} 68. Ke7 {[%clk 0:00:23.3]} 68... Re1 {[%clk 0:00:10.1]} 69.
Kf7 {[%clk 0:00:23]} 69... g4 {[%clk 0:00:06.7]} 70. e7 {[%clk 0:00:17.1]} 70...
g3 {[%clk 0:00:07.7]} 71. e8=Q {[%clk 0:00:17.3]} 71... Rxe8 {[%clk 0:00:08.4]}
72. Rxe8 {[%clk 0:00:19.2]} 72... h5 {[%clk 0:00:08]} 73. Kf6 {[%clk 0:00:11.8]}
73... g2 {[%clk 0:00:05]} 74. Re7+ {[%clk 0:00:09.2]} 74... Kh6 {[%clk
0:00:05.9]} 75. Rg7 {[%clk 0:00:09]} 75... h4 {[%clk 0:00:06.2]} 76. Rxg2 {[%clk
0:00:09.8]} 76... Kh5 {[%clk 0:00:05.9]} 77. Kf5 {[%clk 0:00:10]} 77... h3
{[%clk 0:00:06.5]} 78. Rg8 {[%clk 0:00:08.9]} 78... Kh4 {[%clk 0:00:06.7]} 79.
Kf4 {[%clk 0:00:10]} 1-0

[Event "*** Titled Tuesday Blitz"]
[Site "Chess.com"]
[Date "2018.04.03"]
[Round "6"]
[White "Firouzja2003"]
[Black "ZapataCharlesS"]
[Result "1-0"]
[WhiteElo "2756"]
[BlackElo "2669"]
[TimeControl "180+2"]
[EndTime "14:14:55 PDT"]
[Termination "Firouzja2003 won by resignation"]

1. d4 {[%clk 0:03:01.9]} 1... Nf6 {[%clk 0:02:59]} 2. c4 {[%clk 0:03:03.4]} 2...
e6 {[%clk 0:02:58.7]} 3. g3 {[%clk 0:03:04]} 3... d5 {[%clk 0:02:52.4]} 4. Bg2
{[%clk 0:03:05.9]} 4... c6 {[%clk 0:02:53.8]} 5. Nf3 {[%clk 0:03:05.5]} 5...
Nbd7 {[%clk 0:02:53.7]} 6. Qc2 {[%clk 0:03:03.7]} 6... Bb4+ {[%clk 0:02:53.8]}
7. Nbd2 {[%clk 0:03:04.1]} 7... Ne4 {[%clk 0:02:50.5]} 8. O-O {[%clk 0:03:04.6]}
8... Bxd2 {[%clk 0:02:51.3]} 9. Nxd2 {[%clk 0:03:04.6]} 9... Nxd2 {[%clk
0:02:52.2]} 10. Bxd2 {[%clk 0:03:06.5]} 10... f5 {[%clk 0:02:53.3]} 11. Bb4
{[%clk 0:03:05.8]} 11... Nf6 {[%clk 0:02:49.3]} 12. a4 {[%clk 0:03:06.8]} 12...
a5 {[%clk 0:02:48.6]} 13. Ba3 {[%clk 0:03:07.7]} 13... Kf7 {[%clk 0:02:49.6]}
14. f3 {[%clk 0:03:04.1]} 14... Re8 {[%clk 0:02:46.9]} 15. Rad1 {[%clk
0:03:04.5]} 15... b6 {[%clk 0:02:40.5]} 16. e4 {[%clk 0:03:05.2]} 16... dxc4
{[%clk 0:02:40.1]} 17. Rfe1 {[%clk 0:02:52.3]} 17... g6 {[%clk 0:02:25.9]} 18.
Qxc4 {[%clk 0:02:51.6]} 18... Qd7 {[%clk 0:02:21.2]} 19. b3 {[%clk 0:02:48.6]}
19... Ba6 {[%clk 0:02:21.5]} 20. Qc3 {[%clk 0:02:49.6]} 20... Rac8 {[%clk
0:02:20.3]} 21. Bb2 {[%clk 0:02:50.2]} 21... Qe7 {[%clk 0:02:08.7]} 22. Qe3
{[%clk 0:02:34.5]} 22... Kg8 {[%clk 0:02:04.3]} 23. d5 {[%clk 0:02:26.9]} 23...
cxd5 {[%clk 0:02:03.6]} 24. exd5 {[%clk 0:02:26.7]} 24... Rc2 {[%clk 0:01:55.7]}
25. Ba1 {[%clk 0:02:21]} 25... Nxd5 {[%clk 0:01:43.9]} 26. Qe5 {[%clk
0:02:13.2]} 1-0

[Event "*** Titled Tuesday Blitz"]
[Site "Chess.com"]
[Date "2018.04.03"]
[Round "6"]
[White "olomi007"]
[Black "dimke2802"]
[Result "1-0"]
[WhiteElo "2546"]
[BlackElo "2314"]
[TimeControl "180+2"]
[EndTime "14:15:50 PDT"]
[Termination "olomi007 won by resignation"]

1. e4 {[%clk 0:03:01.9]} 1... c5 {[%clk 0:02:59.2]} 2. Nf3 {[%clk 0:03:02.7]}
2... d6 {[%clk 0:03:00.2]} 3. d4 {[%clk 0:03:04]} 3... cxd4 {[%clk 0:03:02.1]}
4. Nxd4 {[%clk 0:03:05.5]} 4... Nf6 {[%clk 0:03:03.3]} 5. Nc3 {[%clk 0:03:06.9]}
5... Nc6 {[%clk 0:03:04.1]} 6. Bg5 {[%clk 0:03:07.3]} 6... e6 {[%clk 0:03:04.8]}
7. Qd2 {[%clk 0:03:08.2]} 7... a6 {[%clk 0:03:06]} 8. O-O-O {[%clk 0:03:09.2]}
8... Bd7 {[%clk 0:03:07]} 9. f4 {[%clk 0:03:09.3]} 9... h6 {[%clk 0:03:07.7]}
10. Bh4 {[%clk 0:03:09.7]} 10... Nxe4 {[%clk 0:03:08.6]} 11. Qe1 {[%clk
0:03:09.9]} 11... Nf6 {[%clk 0:03:08.5]} 12. Nf5 {[%clk 0:03:11]} 12... Qa5
{[%clk 0:03:09.6]} 13. Nxd6+ {[%clk 0:03:01.9]} 13... Bxd6 {[%clk 0:03:10.1]}
14. Rxd6 {[%clk 0:03:02.9]} 14... O-O-O {[%clk 0:03:11.5]} 15. Bxf6 {[%clk
0:02:46.4]} 15... gxf6 {[%clk 0:03:05.9]} 16. Be2 {[%clk 0:02:43.8]} 16... Ne7
{[%clk 0:03:05.8]} 17. Bf3 {[%clk 0:02:36.5]} 17... Bc6 {[%clk 0:03:06.4]} 18.
Rxd8+ {[%clk 0:02:34.2]} 18... Rxd8 {[%clk 0:03:06.7]} 19. Bxc6 {[%clk
0:02:22.9]} 19... Nxc6 {[%clk 0:03:05.9]} 20. Qh4 {[%clk 0:02:21.1]} 20... Qf5
{[%clk 0:03:06.7]} 21. Rd1 {[%clk 0:02:09.8]} 21... Rxd1+ {[%clk 0:02:53.7]} 22.
Kxd1 {[%clk 0:02:10]} 22... Nd4 {[%clk 0:02:46.2]} 23. Qf2 {[%clk 0:02:08.1]}
23... e5 {[%clk 0:02:45.4]} 24. g3 {[%clk 0:02:05.5]} 24... Qg4+ {[%clk
0:02:06.6]} 25. Kd2 {[%clk 0:01:55.1]} 25... Qf5 {[%clk 0:01:59.2]} 26. Kc1
{[%clk 0:01:50.7]} 26... h5 {[%clk 0:01:50.8]} 27. b3 {[%clk 0:01:43.3]} 27...
Kd7 {[%clk 0:01:22.3]} 28. Nd5 {[%clk 0:01:40.7]} 28... Kc6 {[%clk 0:01:15.9]}
29. Ne7+ {[%clk 0:01:40.5]} 1-0

[Event "*** Titled Tuesday Blitz"]
[Site "Chess.com"]
[Date "2018.04.03"]
[Round "6"]
[White "Vadim_Biliy"]
[Black "FearNoEvil12"]
[Result "0-1"]
[WhiteElo "2116"]
[BlackElo "1997"]
[TimeControl "180+2"]
[EndTime "14:15:58 PDT"]
[Termination "FearNoEvil12 won by resignation"]

1. d4 {[%clk 0:03:00.5]} 1... b5 {[%clk 0:02:24.4]} 2. e3 {[%clk 0:02:58.8]}
2... a6 {[%clk 0:02:25.3]} 3. Nf3 {[%clk 0:02:57]} 3... Bb7 {[%clk 0:02:26.6]}
4. Be2 {[%clk 0:02:56.8]} 4... Nf6 {[%clk 0:02:28]} 5. O-O {[%clk 0:02:57]} 5...
e6 {[%clk 0:02:29.5]} 6. a4 {[%clk 0:02:54.5]} 6... b4 {[%clk 0:02:29.1]} 7. a5
{[%clk 0:02:54.9]} 7... d6 {[%clk 0:02:30.3]} 8. b3 {[%clk 0:02:48.2]} 8... Nbd7
{[%clk 0:02:31.2]} 9. Bb2 {[%clk 0:02:48.8]} 9... Rg8 {[%clk 0:02:32.5]} 10. Qe1
{[%clk 0:02:35.8]} 10... g5 {[%clk 0:02:32]} 11. Qxb4 {[%clk 0:02:34.4]} 11...
Rb8 {[%clk 0:02:33.4]} 12. Qa4 {[%clk 0:02:32.6]} 12... g4 {[%clk 0:02:32.5]}
13. Ne1 {[%clk 0:02:30.5]} 13... Ne4 {[%clk 0:02:26.5]} 14. b4 {[%clk
0:02:12.4]} 14... Bh6 {[%clk 0:02:13.9]} 15. b5 {[%clk 0:02:10.8]} 15... Qh4
{[%clk 0:02:06.9]} 16. bxa6 {[%clk 0:02:08.1]} 16... Ba8 {[%clk 0:02:05.5]} 17.
Bb5 {[%clk 0:02:05.3]} 17... Rd8 {[%clk 0:01:56.2]} 18. Bc6 {[%clk 0:02:00]}
18... Bxc6 {[%clk 0:01:40]} 19. Qxc6 {[%clk 0:01:59.4]} 19... Nxf2 {[%clk
0:01:39.2]} 20. Bc1 {[%clk 0:01:40.3]} 20... Nh3+ {[%clk 0:01:21.3]} 21. Kh1
{[%clk 0:01:36.5]} 21... g3 {[%clk 0:01:20.1]} 22. a7 {[%clk 0:01:23.4]} 22...
Nf2+ {[%clk 0:01:16.9]} 0-1

[Event "*** Titled Tuesday Blitz"]
[Site "Chess.com"]
[Date "2018.04.03"]
[Round "6"]
[White "jefferyx"]
[Black "Patzel09"]
[Result "1-0"]
[WhiteElo "2758"]
[BlackElo "2552"]
[TimeControl "180+2"]
[EndTime "14:16:11 PDT"]
[Termination "jefferyx won by resignation"]

1. d4 {[%clk 0:03:01.9]} 1... Nf6 {[%clk 0:02:58]} 2. Nf3 {[%clk 0:03:02.9]}
2... g6 {[%clk 0:02:58.4]} 3. Nbd2 {[%clk 0:03:03.6]} 3... d5 {[%clk 0:02:54.3]}
4. b4 {[%clk 0:03:04.5]} 4... Bg7 {[%clk 0:02:54.3]} 5. e3 {[%clk 0:03:05.8]}
5... O-O {[%clk 0:02:55.7]} 6. Bb2 {[%clk 0:03:07]} 6... a5 {[%clk 0:02:49.7]}
7. b5 {[%clk 0:03:08.2]} 7... c6 {[%clk 0:02:40.6]} 8. a4 {[%clk 0:03:09.2]}
8... Nbd7 {[%clk 0:02:41.4]} 9. Be2 {[%clk 0:03:07.3]} 9... c5 {[%clk
0:02:35.5]} 10. c4 {[%clk 0:03:03.2]} 10... b6 {[%clk 0:02:35.1]} 11. cxd5
{[%clk 0:03:01.3]} 11... Nxd5 {[%clk 0:02:35.9]} 12. O-O {[%clk 0:03:02.1]}
12... Bb7 {[%clk 0:02:33.8]} 13. Nc4 {[%clk 0:02:47.3]} 13... Rc8 {[%clk
0:02:31]} 14. Rc1 {[%clk 0:02:47.9]} 14... N7f6 {[%clk 0:02:11.1]} 15. dxc5
{[%clk 0:02:44.9]} 15... Rxc5 {[%clk 0:02:13]} 16. Bd4 {[%clk 0:02:41.5]} 16...
Rc8 {[%clk 0:01:54.2]} 17. Bxb6 {[%clk 0:02:35.9]} 17... Nxb6 {[%clk 0:01:45.7]}
18. Qxd8 {[%clk 0:02:37.8]} 18... Rcxd8 {[%clk 0:01:45.8]} 19. Nxb6 {[%clk
0:02:39.1]} 19... Ne4 {[%clk 0:01:42.1]} 20. Rc7 {[%clk 0:02:39.4]} 20... Ba8
{[%clk 0:01:35.1]} 21. Nxa8 {[%clk 0:02:29.1]} 21... Rxa8 {[%clk 0:01:35.3]} 22.
Rfc1 {[%clk 0:02:30.7]} 22... Bf6 {[%clk 0:01:30.6]} 23. b6 {[%clk 0:02:20.7]}
23... Rab8 {[%clk 0:01:28.3]} 24. b7 {[%clk 0:02:21.7]} 24... Nd6 {[%clk
0:01:29.3]} 25. Ba6 {[%clk 0:02:22.5]} 25... Kg7 {[%clk 0:01:24.5]} 26. Kf1
{[%clk 0:02:07.5]} 26... g5 {[%clk 0:01:25.1]} 27. Ke2 {[%clk 0:02:04.6]} 27...
g4 {[%clk 0:01:25.9]} 28. Nd2 {[%clk 0:02:03.2]} 28... h5 {[%clk 0:01:18.4]} 29.
Nb3 {[%clk 0:02:03.7]} 29... Nf5 {[%clk 0:00:48.2]} 30. Nxa5 {[%clk 0:01:55.1]}
30... Be5 {[%clk 0:00:45.9]} 31. R7c5 {[%clk 0:01:55.8]} 1-0

[Event "*** Titled Tuesday Blitz"]
[Site "Chess.com"]
[Date "2018.04.03"]
[Round "6"]
[White "HanSchut"]
[Black "FitnessBen"]
[Result "0-1"]
[WhiteElo "2193"]
[BlackElo "2472"]
[TimeControl "180+2"]
[EndTime "14:16:14 PDT"]
[Termination "FitnessBen won by resignation"]

1. e4 {[%clk 0:03:01.9]} 1... c5 {[%clk 0:02:58.2]} 2. Nf3 {[%clk 0:02:58]} 2...
Nc6 {[%clk 0:02:54.2]} 3. d4 {[%clk 0:02:59]} 3... cxd4 {[%clk 0:02:55.6]} 4.
Nxd4 {[%clk 0:03:00.9]} 4... g6 {[%clk 0:02:57]} 5. c4 {[%clk 0:02:59.5]} 5...
Nf6 {[%clk 0:02:57.6]} 6. Nc3 {[%clk 0:02:59]} 6... d6 {[%clk 0:02:58.8]} 7. Be2
{[%clk 0:02:59]} 7... Nxd4 {[%clk 0:02:59.9]} 8. Qxd4 {[%clk 0:02:59.4]} 8...
Bg7 {[%clk 0:03:01.8]} 9. Bg5 {[%clk 0:02:59.5]} 9... O-O {[%clk 0:03:02.7]} 10.
Qd2 {[%clk 0:02:59.8]} 10... a5 {[%clk 0:03:03.8]} 11. b3 {[%clk 0:02:58.5]}
11... Nxe4 {[%clk 0:03:03]} 12. Nxe4 {[%clk 0:02:56]} 12... Bxa1 {[%clk
0:03:03.8]} 13. Bh6 {[%clk 0:02:55.3]} 13... Bg7 {[%clk 0:03:03.8]} 14. Bxg7
{[%clk 0:02:56.2]} 14... Kxg7 {[%clk 0:03:05.7]} 15. h4 {[%clk 0:02:57.2]} 15...
Bf5 {[%clk 0:03:04.5]} 16. Ng3 {[%clk 0:02:54]} 16... Qd7 {[%clk 0:03:00]} 17.
h5 {[%clk 0:02:54.1]} 17... Rh8 {[%clk 0:03:00.5]} 18. Qd4+ {[%clk 0:02:39.2]}
18... e5 {[%clk 0:03:00.8]} 19. Qh4 {[%clk 0:02:22.6]} 19... f6 {[%clk
0:02:55.5]} 20. c5 {[%clk 0:01:54.9]} 20... dxc5 {[%clk 0:02:47.5]} 21. h6+
{[%clk 0:01:55.4]} 21... Kf7 {[%clk 0:02:46.8]} 22. Nxf5 {[%clk 0:01:42.2]}
22... Qxf5 {[%clk 0:02:48.5]} 23. Bc4+ {[%clk 0:01:43.4]} 23... Ke7 {[%clk
0:02:48.9]} 24. O-O {[%clk 0:01:43.5]} 24... Qf4 {[%clk 0:02:38.9]} 25. Qh3
{[%clk 0:01:40.6]} 25... f5 {[%clk 0:02:35.4]} 26. g3 {[%clk 0:01:34.7]} 26...
Qg4 {[%clk 0:02:26.1]} 27. Qg2 {[%clk 0:01:34.6]} 27... Qe4 {[%clk 0:02:26.8]}
28. f3 {[%clk 0:01:27.5]} 28... Qe3+ {[%clk 0:02:26.8]} 29. Kh2 {[%clk
0:01:23.2]} 29... Qxh6+ {[%clk 0:02:27.2]} 30. Kg1 {[%clk 0:01:22.9]} 30... Qe3+
{[%clk 0:02:28]} 31. Kh2 {[%clk 0:01:23.5]} 31... Rad8 {[%clk 0:02:28.7]} 32.
Rf2 {[%clk 0:01:21.8]} 32... Qh6+ {[%clk 0:02:26.8]} 33. Kg1 {[%clk 0:01:21.8]}
33... Rd1+ {[%clk 0:02:28.1]} 34. Bf1 {[%clk 0:01:17.8]} 34... Qe3 {[%clk
0:02:27.9]} 35. f4 {[%clk 0:01:18.1]} 35... e4 {[%clk 0:02:26.3]} 36. Kh2 {[%clk
0:01:18.8]} 36... Rhd8 {[%clk 0:02:19.9]} 37. Re2 {[%clk 0:01:17.6]} 37... Qd4
{[%clk 0:02:16.4]} 38. Qh3 {[%clk 0:01:15.6]} 38... h5 {[%clk 0:02:14.3]} 39.
Qh4+ {[%clk 0:01:16.7]} 39... Qf6 {[%clk 0:02:14.4]} 40. Qh3 {[%clk 0:01:16.9]}
40... R8d2 {[%clk 0:02:14.2]} 0-1

[Event "*** Titled Tuesday Blitz"]
[Site "Chess.com"]
[Date "2018.04.03"]
[Round "6"]
[White "volodja49"]
[Black "SamCopeland"]
[Result "1-0"]
[WhiteElo "2402"]
[BlackElo "2017"]
[TimeControl "180+2"]
[EndTime "14:16:14 PDT"]
[Termination "volodja49 won by resignation"]

1. d4 {[%clk 0:02:26.3]} 1... f5 {[%clk 0:02:59.3]} 2. Nc3 {[%clk 0:02:25.3]}
2... Nf6 {[%clk 0:02:58.2]} 3. Bg5 {[%clk 0:02:26.1]} 3... e6 {[%clk 0:02:57.5]}
4. e4 {[%clk 0:02:26.7]} 4... fxe4 {[%clk 0:02:58.2]} 5. Nxe4 {[%clk 0:02:28.6]}
5... Be7 {[%clk 0:02:59.5]} 6. Bxf6 {[%clk 0:02:30]} 6... Bxf6 {[%clk
0:03:01.4]} 7. Nf3 {[%clk 0:02:31.2]} 7... O-O {[%clk 0:03:01.2]} 8. Bd3 {[%clk
0:02:32.1]} 8... Nc6 {[%clk 0:02:55.5]} 9. c3 {[%clk 0:02:32.5]} 9... d5 {[%clk
0:02:43.4]} 10. Nxf6+ {[%clk 0:02:31.9]} 10... Qxf6 {[%clk 0:02:43]} 11. Qe2
{[%clk 0:02:31.2]} 11... Bd7 {[%clk 0:02:28.3]} 12. O-O {[%clk 0:02:29.9]} 12...
Rae8 {[%clk 0:02:18.4]} 13. Rae1 {[%clk 0:02:24.2]} 13... Re7 {[%clk 0:02:12.3]}
14. Ne5 {[%clk 0:02:25]} 14... Nxe5 {[%clk 0:02:04.7]} 15. Qxe5 {[%clk
0:02:26.9]} 15... Qxe5 {[%clk 0:01:52.3]} 16. Rxe5 {[%clk 0:02:28.8]} 16... Rf6
{[%clk 0:01:45.4]} 17. Rfe1 {[%clk 0:02:26.3]} 17... g6 {[%clk 0:01:32.2]} 18.
Rxd5 {[%clk 0:02:21.6]} 18... exd5 {[%clk 0:01:21.6]} 19. Rxe7 {[%clk
0:02:21.1]} 19... Rf7 {[%clk 0:01:22.9]} 20. Rxf7 {[%clk 0:02:21.3]} 20... Kxf7
{[%clk 0:01:24.8]} 21. f4 {[%clk 0:02:20.1]} 21... h6 {[%clk 0:01:17.7]} 22. Kf2
{[%clk 0:02:19.7]} 22... b6 {[%clk 0:01:18.3]} 23. b4 {[%clk 0:02:15.8]} 23...
Kf6 {[%clk 0:01:18.3]} 24. Kf3 {[%clk 0:02:16.3]} 24... Ba4 {[%clk 0:01:16.5]}
25. g4 {[%clk 0:02:12.6]} 25... Bd1+ {[%clk 0:01:13.6]} 26. Kg3 {[%clk
0:02:13.3]} 26... a5 {[%clk 0:01:08.7]} 27. a3 {[%clk 0:02:10.6]} 27... Bb3
{[%clk 0:01:07.5]} 28. h4 {[%clk 0:02:09.3]} 28... Bd1 {[%clk 0:01:07.6]} 29.
g5+ {[%clk 0:02:10]} 29... hxg5 {[%clk 0:01:09.5]} 30. fxg5+ {[%clk 0:02:10.7]}
30... Kf7 {[%clk 0:01:08.8]} 31. Kf4 {[%clk 0:02:12.6]} 31... Bh5 {[%clk
0:00:56.6]} 32. Ke5 {[%clk 0:02:12.7]} 32... Bf3 {[%clk 0:00:57.9]} 33. Bb5
{[%clk 0:02:06.3]} 33... axb4 {[%clk 0:00:56.6]} 34. cxb4 {[%clk 0:02:06]} 1-0

[Event "*** Titled Tuesday Blitz"]
[Site "Chess.com"]
[Date "2018.04.03"]
[Round "6"]
[White "1977Ivan"]
[Black "Bauxi435"]
[Result "1-0"]
[WhiteElo "2435"]
[BlackElo "2435"]
[TimeControl "180+2"]
[EndTime "14:16:18 PDT"]
[Termination "1977Ivan won by resignation"]

1. d4 {[%clk 0:03:01.9]} 1... Nf6 {[%clk 0:02:59.4]} 2. Nf3 {[%clk 0:03:02.7]}
2... e6 {[%clk 0:03:00.9]} 3. e3 {[%clk 0:03:01.7]} 3... d5 {[%clk 0:02:58.8]}
4. b3 {[%clk 0:02:55.8]} 4... Nbd7 {[%clk 0:02:54.2]} 5. Bb2 {[%clk 0:02:56.4]}
5... c5 {[%clk 0:02:54.9]} 6. Bd3 {[%clk 0:02:56.5]} 6... cxd4 {[%clk
0:02:54.1]} 7. exd4 {[%clk 0:02:56.5]} 7... Bb4+ {[%clk 0:02:54.5]} 8. c3 {[%clk
0:02:52.9]} 8... Bd6 {[%clk 0:02:55.4]} 9. O-O {[%clk 0:02:54.2]} 9... O-O
{[%clk 0:02:34.8]} 10. c4 {[%clk 0:02:54.4]} 10... b6 {[%clk 0:02:32.1]} 11. Nc3
{[%clk 0:02:55.1]} 11... dxc4 {[%clk 0:02:31.5]} 12. bxc4 {[%clk 0:02:55.5]}
12... Bb7 {[%clk 0:02:33]} 13. Nb5 {[%clk 0:02:55.6]} 13... Bb8 {[%clk
0:02:30.3]} 14. a4 {[%clk 0:02:49.9]} 14... a6 {[%clk 0:02:25.9]} 15. Nc3 {[%clk
0:02:49.6]} 15... Qc7 {[%clk 0:02:25.8]} 16. g3 {[%clk 0:02:39.8]} 16... Qc6
{[%clk 0:02:06.4]} 17. Be2 {[%clk 0:02:35.1]} 17... Rd8 {[%clk 0:02:03.4]} 18.
Qc2 {[%clk 0:02:07.4]} 18... e5 {[%clk 0:01:57.6]} 19. d5 {[%clk 0:02:07.2]}
19... Qd6 {[%clk 0:01:54.2]} 20. Ng5 {[%clk 0:02:03.2]} 20... Nc5 {[%clk
0:01:51.7]} 21. Ba3 {[%clk 0:02:03.6]} 21... h6 {[%clk 0:01:42.1]} 22. Nge4
{[%clk 0:02:03.7]} 22... Nfxe4 {[%clk 0:01:35]} 23. Nxe4 {[%clk 0:02:03.8]}
23... Qe7 {[%clk 0:01:28.9]} 24. Rab1 {[%clk 0:01:59.4]} 24... Bd6 {[%clk
0:01:26.2]} 25. Nxd6 {[%clk 0:01:56.9]} 25... Qxd6 {[%clk 0:01:26.4]} 26. a5
{[%clk 0:01:58.3]} 26... b5 {[%clk 0:01:19.8]} 27. Rfd1 {[%clk 0:01:54]} 27...
Rac8 {[%clk 0:01:11.5]} 28. cxb5 {[%clk 0:01:54.1]} 28... axb5 {[%clk
0:01:11.3]} 29. Rxb5 {[%clk 0:01:54]} 29... Ba6 {[%clk 0:01:03.9]} 30. Rxc5
{[%clk 0:01:53.9]} 30... Bxe2 {[%clk 0:00:52.4]} 31. Rxc8 {[%clk 0:01:53.5]}
31... Bxd1 {[%clk 0:00:53.8]} 32. Bxd6 {[%clk 0:01:53.5]} 32... Bxc2 {[%clk
0:00:53.8]} 33. Rxd8+ {[%clk 0:01:53.8]} 1-0

[Event "*** Titled Tuesday Blitz"]
[Site "Chess.com"]
[Date "2018.04.03"]
[Round "6"]
[White "LawrenceTrent"]
[Black "wonderfultime"]
[Result "0-1"]
[WhiteElo "2534"]
[BlackElo "2748"]
[TimeControl "180+2"]
[EndTime "14:16:27 PDT"]
[Termination "wonderfultime won by resignation"]

1. e4 {[%clk 0:03:01.9]} 1... c5 {[%clk 0:03:00.5]} 2. b3 {[%clk 0:03:00.4]}
2... Nf6 {[%clk 0:02:55]} 3. e5 {[%clk 0:02:58.4]} 3... Nd5 {[%clk 0:02:56.2]}
4. Bb2 {[%clk 0:02:59.7]} 4... Nc6 {[%clk 0:02:57.1]} 5. Nf3 {[%clk 0:03:00.7]}
5... d6 {[%clk 0:02:55.3]} 6. Bb5 {[%clk 0:03:01.2]} 6... Nc7 {[%clk 0:02:47.5]}
7. Bxc6+ {[%clk 0:02:58.2]} 7... bxc6 {[%clk 0:02:49.4]} 8. exd6 {[%clk
0:02:59]} 8... exd6 {[%clk 0:02:48.1]} 9. O-O {[%clk 0:02:59.7]} 9... Ne6 {[%clk
0:02:38.9]} 10. d4 {[%clk 0:02:46.4]} 10... Qf6 {[%clk 0:02:22.3]} 11. Bc3
{[%clk 0:02:23.3]} 11... Qf5 {[%clk 0:02:22.8]} 12. Re1 {[%clk 0:02:17.1]} 12...
Be7 {[%clk 0:02:23.5]} 13. dxc5 {[%clk 0:02:18.1]} 13... Qxc5 {[%clk 0:02:24.1]}
14. Bb2 {[%clk 0:01:51.6]} 14... O-O {[%clk 0:02:22.5]} 15. Nbd2 {[%clk
0:01:52.4]} 15... d5 {[%clk 0:02:14.8]} 16. Nf1 {[%clk 0:01:51.9]} 16... Re8
{[%clk 0:02:13.2]} 17. Ng3 {[%clk 0:01:52.8]} 17... Bf8 {[%clk 0:02:00.1]} 18.
Qd2 {[%clk 0:01:50.8]} 18... Qb4 {[%clk 0:01:59.9]} 19. Bc3 {[%clk 0:01:45.7]}
19... Qb6 {[%clk 0:01:25.2]} 20. Nf5 {[%clk 0:01:33.4]} 20... Bb7 {[%clk
0:01:24]} 21. Ng5 {[%clk 0:01:09.9]} 21... c5 {[%clk 0:01:20.2]} 22. Nxe6 {[%clk
0:00:59]} 22... Rxe6 {[%clk 0:01:22.1]} 23. Rxe6 {[%clk 0:00:57.4]} 23... Qxe6
{[%clk 0:01:22]} 24. Re1 {[%clk 0:00:57.6]} 24... Qxf5 {[%clk 0:01:22.5]} 0-1